[Event "EYCC 2017"]
[Site "Mamaia"]
[Date "2017.09.14"]
[Round "9"]
[White "Piliposyan, Robert"]
[Black "Gasparyan, David"]
[Result "1-0"]
[ECO "B20"]
[WhiteElo "1773"]
[BlackElo "1569"]
[Annotator "NA RC"]
[PlyCount "93"]
[EventDate "2017.??.??"]
[EventType "swiss"]
[EventCountry "ROU"]
[SourceTitle "playchess.com"]
[Source "ChessBase"]
[SourceQuality "1"]
[TimeControl "40/5400+30:1800+30"]

1. e4 {[%emt 0:00:00]} c5 {[%emt 0:00:11]} 2. Ne2 {[%emt 0:00:00]} Nc6 {[%emt 0:00:13]} 3. g3 {[%emt 0:00:00]} g6 {[%emt 0:03:45]} 4. Bg2 {[%emt 0:00:06]} Bg7 {[%emt 0:00:53]} 5. O-O {[%emt 0:00:06]} d6 {[%emt 0:09:23]} 6. c3 {[%emt 0:02:46]} Nf6 {[%emt 0:04:43]} 7. d4 {[%emt 0:00:42]} cxd4 {[%emt 0:00:49]} 8. cxd4 {[%emt 0:00:04]} O-O {[%emt 0:00:43]} 9. Nbc3 {[%emt 0:00:10]} a6 {[%emt 0:07:13]} 10. h3 {[%emt 0:00:42]} Nd7 {[%emt 0:08:05]} 11. Be3 {[%emt 0:02:11]} Rb8 {[%emt 0:03:13]} 12. Rc1 {[%emt 0:01:33]} Na5 {[%emt 0:05:32]} 13. b3 {[%emt 0:07:59]} b5 {[%emt 0:00:48]} 14. d5 {[%emt 0:06:23]} Nb6 {[%emt 0:10:42]} 15. Qd2 {[%emt 0:08:51]} Bd7 {[%emt 0:02:09]} 16. Nd1 {[%emt 0:03:27]} Nb7 {[%emt 0:03:34]} 17. Nb2 {[%emt 0:05:49]} Rc8 {[%emt 0:07:24]} 18. Nd3 {[%emt 0:01:11]} a5 {[%emt 0:01:39]} 19. Nd4 {[%emt 0:01:47]} Nc5 {[%emt 0:07:59]} 20. Nxc5 {[%emt 0:02:05]} dxc5 {[%emt 0:01:19]} 21. Ne2 {[%emt 0:00:55]} b4 {[%emt 0:02:49]} 22. Rxc5 {[%emt 0:01:34]} Rxc5 {[%emt 0:01:22]} 23. Bxc5 {[%emt 0:01:16]} Bb5 {[%emt 0:00:14]} 24. Rc1 {[%emt 0:00:26]} Nd7 {[%emt 0:00:21]} 25. Be3 {[%emt 0:03:22]} Ba6 {[%emt 0:06:21]} 26. f4 {[%emt 0:01:26]} Re8 27. Nd4 {[%emt 0:04:30]} Bxd4 {[%emt 0:03:48]} 28. Qxd4 {[%emt 0:00:46]} e6 {[%emt 0:00:47]} 29. dxe6 {[%emt 0:00:39]} Rxe6 {[%emt 0:00:22]} 30. e5 {[%emt 0:00:20]} Qe8 {[%emt 0:02:11]} 31. Bd5 {[%emt 0:07:23]} Re7 {[%emt 0:00:54]} 32. Bc6 {[%emt 0:00:58]} Qc8 {[%emt 0:03:04]} 33. Qd6 {[%emt 0:01:23]} Qd8 {[%emt 0:02:40]} 34. Bxd7 {[%emt 0:00:15]} Rxd7 {[%emt 0:00:08]} 35. Qxa6 {[%emt 0:00:07]} Rd1+ {[%emt 0:00:10]} 36. Rxd1 {[%emt 0:00:04]} Qxd1+ {[%emt 0:00:04]} 37. Qf1 {[%emt 0:00:37]} Qc2 {[%emt 0:00:36]} 38. Qf2 {[%emt 0:00:11]} Qd1+ {[%emt 0:00:07]} 39. Kh2 {[%emt 0:00:04]} Qd5 {[%emt 0:01:22]} 40. Qd2 {[%emt 0:00:00]} Qb5 {[%emt 0:00:29]} 41. g4 {[%emt 0:01:47]} Qb8 {[%emt 0:02:16]} 42. Bc5 {[%emt 0:00:22]} Qe8 {[%emt 0:00:40]} 43. Qd6 {[%emt 0:00:08]} h6 {[%emt 0:00:38]} 44. f5 {[%emt 0:00:08]} g5 {[%emt 0:00:31]} 45. e6 {[%emt 0:00:08]} fxe6 {[%emt 0:20:00]} 46. fxe6 {[%emt 0:00:18]} Qa8 {[%emt 0:05:09]} 47. e7 {[%emt 0:00:11]} 1-0

[Event "EYCC 2017"]
[Site "Mamaia"]
[Date "2017.09.14"]
[Round "9"]
[White "Lomaia, Diana"]
[Black "Karavitaki, Evaggelia"]
[Result "1-0"]
[ECO "B42"]
[WhiteElo "1753"]
[BlackElo "1703"]
[Annotator "NA RC"]
[PlyCount "151"]
[EventDate "2017.??.??"]
[EventType "swiss"]
[EventCountry "ROU"]
[SourceTitle "playchess.com"]
[Source "ChessBase"]
[SourceQuality "1"]
[TimeControl "40/5400+30:1800+30"]

1. e4 {[%emt 0:00:00]} c5 {[%emt 0:00:12]} 2. Nf3 {[%emt 0:00:00]} e6 {[%emt 0:00:10]} 3. d4 {[%emt 0:00:35]} cxd4 {[%emt 0:00:08]} 4. Nxd4 {[%emt 0:00:05]} a6 {[%emt 0:00:18]} 5. Bd3 {[%emt 0:00:36]} Bc5 {[%emt 0:00:12]} 6. Nb3 {[%emt 0:01:09]} Ba7 {[%emt 0:00:23]} 7. O-O {[%emt 0:01:07]} Nc6 {[%emt 0:00:29]} 8. c4 {[%emt 0:02:25]} Nf6 {[%emt 0:06:59]} 9. Qe2 {[%emt 0:00:37]} d6 {[%emt 0:00:24]} 10. Nc3 {[%emt 0:01:21]} O-O {[%emt 0:01:09]} 11. Be3 {[%emt 0:02:51]} Bxe3 {[%emt 0:19:06]} 12. Qxe3 {[%emt 0:01:20]} Qe7 {[%emt 0:03:01]} 13. Rae1 {[%emt 0:06:21]} Ne5 {[%emt 0:06:57]} 14. f4 {[%emt 0:02:56]} Nxd3 {[%emt 0:01:35]} 15. Qxd3 {[%emt 0:00:07]} Rd8 {[%emt 0:01:27]} 16. Kh1 {[%emt 0:02:17]} b6 {[%emt 0:07:34]} 17. f5 {[%emt 0:11:03]} Bb7 {[%emt 0:10:41]} 18. Nd4 {[%emt 0:02:04]} e5 {[%emt 0:03:07]} 19. Nc2 {[%emt 0:01:59]} Rac8 {[%emt 0:02:09]} 20. Ne3 {[%emt 0:01:21]} Qc7 {[%emt 0:03:10]} 21. Rc1 {[%emt 0:01:42]} Qb8 {[%emt 0:16:54]} 22. b3 {[%emt 0:02:40]} Qa8 {[%emt 0:01:18]} 23. Ned5 {[%emt 0:00:51]} Bxd5 {[%emt 0:00:17]} 24. Nxd5 {[%emt 0:01:13]} Nxd5 {[%emt 0:00:08]} 25. exd5 {[%emt 0:00:41]} f6 {[%emt 0:01:27]} 26. Qe4 {[%emt 0:00:39]} Qb7 {[%emt 0:01:38]} 27. Rf3 {[%emt 0:03:21]} Qf7 {[%emt 0:00:50]} 28. Rh3 {[%emt 0:00:51]} h6 {[%emt 0:02:39]} 29. Rcc3 {[%emt 0:00:44]} Kf8 {[%emt 0:01:07]} 30. Rhg3 {[%emt 0:11:01]} Ke7 {[%emt 0:00:21]} 31. Qe3 {[%emt 0:01:23]} Rb8 {[%emt 0:00:43]} 32. h3 {[%emt 0:01:06]} Rdc8 {[%emt 0:00:40]} 33. a4 {[%emt 0:00:46]} a5 {[%emt 0:03:20]} 34. Rc1 {[%emt 0:03:00]} Rc5 {[%emt 0:01:12]} 35. Rg4 {[%emt 0:00:17]} Rbc8 {[%emt 0:01:15]} 36. Rb1 {[%emt 0:01:37]} Kf8 {[%emt 0:00:43]} 37. Qd3 {[%emt 0:02:15]} Qc7 {[%emt 0:00:49]} 38. Re1 {[%emt 0:01:58]} Qf7 {[%emt 0:00:53]} 39. Re3 {[%emt 0:00:31]} R8c7 {[%emt 0:02:45]} 40. Reg3 {[%emt 0:00:00]} Qe7 {[%emt 0:01:32]} 41. Qe3 {[%emt 0:05:19]} Qe8 {[%emt 0:01:53]} 42. Rg6 {[%emt 0:04:01]} Rd7 {[%emt 0:06:55]} 43. Kh2 {[%emt 0:01:11]} Rdc7 {[%emt 0:00:42]} 44. R6g4 {[%emt 0:01:50]} Rd7 {[%emt 0:02:14]} 45. Rg6 {[%emt 0:11:41]} Rdc7 {[%emt 0:00:22]} 46. R3g4 {[%emt 0:00:18]} Rd7 {[%emt 0:03:38]} 47. Qg3 {[%emt 0:02:39]} Qf7 {[%emt 0:02:37]} 48. Qh4 {[%emt 0:01:46]} Rcc7 {[%emt 0:07:55]} 49. Re4 {[%emt 0:04:03]} Rc5 {[%emt 0:01:09]} 50. Qf2 {[%emt 0:00:51]} Rdc7 {[%emt 0:00:36]} 51. Re3 {[%emt 0:01:52]} Rd7 {[%emt 0:00:45]} 52. Qf3 {[%emt 0:02:19]} Rdc7 {[%emt 0:00:59]} 53. Qe4 {[%emt 0:00:14]} Rd7 {[%emt 0:00:27]} 54. h4 {[%emt 0:01:07]} Ke8 {[%emt 0:02:06]} 55. g4 {[%emt 0:01:40]} Kd8 {[%emt 0:02:07]} 56. Rg3 {[%emt 0:00:40]} Kc8 {[%emt 0:00:54]} 57. Kg2 {[%emt 0:02:24]} Kb7 {[%emt 0:00:15]} 58. g5 {[%emt 0:00:40]} hxg5 {[%emt 0:00:10]} 59. hxg5 {[%emt 0:00:04]} fxg5 {[%emt 0:01:53]} 60. R3xg5 {[%emt 0:00:13]} Rcc7 {[%emt 0:00:15]} 61. Kf3 {[%emt 0:02:39]} Ka7 {[%emt 0:00:12]} 62. Qg4 {[%emt 0:01:16]} Kb7 {[%emt 0:00:14]} 63. Ke4 {[%emt 0:01:04]} Ka7 {[%emt 0:00:27]} 64. Re6 {[%emt 0:01:56]} Qf8 {[%emt 0:00:56]} 65. Qh5 {[%emt 0:00:38]} Kb7 {[%emt 0:00:47]} 66. Re8 {[%emt 0:00:40]} Qf7 {[%emt 0:00:19]} 67. Qh8 {[%emt 0:00:24]} Ka6 {[%emt 0:00:46]} 68. Rg6 {[%emt 0:02:48]} Ra7 {[%emt 0:00:13]} 69. Rge6 {[%emt 0:02:04]} g5 {[%emt 0:02:43]} 70. Rg6 {[%emt 0:00:39]} Qh7 {[%emt 0:00:20]} 71. Rxg5 {[%emt 0:00:42]} Qxh8 {[%emt 0:00:19]} 72. Rxh8 {[%emt 0:00:06]} Kb7 {[%emt 0:00:56]} 73. Rhg8 {[%emt 0:00:27]} Kc7 {[%emt 0:00:34]} 74. R5g7 {[%emt 0:00:19]} Ra6 {[%emt 0:00:09]} 75. f6 {[%emt 0:00:11]} Rxg7 {[%emt 0:00:22]} 76. fxg7 {[%emt 0:00:50]} 1-0

[Event "EYCC 2017"]
[Site "Mamaia"]
[Date "2017.09.14"]
[Round "9"]
[White "Ince, Safiye Oyku"]
[Black "Sosnina, Nadezhda"]
[Result "1-0"]
[ECO "B01"]
[WhiteElo "1737"]
[BlackElo "1797"]
[Annotator "NA RC"]
[PlyCount "109"]
[EventDate "2017.??.??"]
[EventType "swiss"]
[EventCountry "ROU"]
[SourceTitle "playchess.com"]
[Source "ChessBase"]
[SourceQuality "1"]
[TimeControl "40/5400+30:1800+30"]

1. e4 d5 2. exd5 Nf6 3. d4 Bg4 4. Bb5+ Nbd7 5. Be2 Bxe2 6. Qxe2 Nxd5 7. Nf3 e6 8. O-O Bd6 9. c4 Nf4 10. Qe4 Nf6 11. Qxb7 Ne2+ 12. Kh1 O-O 13. Bd2 Rb8 14. Qxa7 Ra8 15. Qb7 Rb8 16. Qa6 Rxb2 17. c5 Nxd4 18. Nxd4 Bxc5 19. Nb3 Bb6 20. Qc4 Qa8 21. Nc3 Rd8 22. Rfd1 Rc2 23. Qh4 Rd3 24. Rac1 Bxf2 25. Qc4 Rxc1 26. Qxd3 Rxd1+ 27. Nxd1 Bb6 28. Be3 Bxe3 29. Nxe3 Ne4 30. Kg1 Nd6 31. Qc2 Qb7 32. Qd2 h6 33. Qd4 Qa6 34. a4 Qb7 35. Qd3 Qa7 36. a5 Nf5 37. Kf2 c5 38. Nxf5 exf5 39. Qc4 Qc7 40. a6 g6 41. g3 Qb6 42. Ke3 Qb8 43. Kd2 Qd8+ 44. Kc2 Qa8 45. Kb2 Qa7 46. Ka3 Qb6 47. Qa4 Qa7 48. Qc6 c4 49. Qb7 Qf2 50. a7 c3 51. a8=Q+ Kg7 52. Qg2 Qe1 53. Qc2 Qe7+ 54. Ka2 Qc7 55. Qa5 1-0

[Event "EYCC 2017"]
[Site "Mamaia"]
[Date "2017.09.14"]
[Round "9"]
[White "Alekseenko, Mariya"]
[Black "Murzina, Agata"]
[Result "1-0"]
[ECO "A25"]
[WhiteElo "1731"]
[BlackElo "1825"]
[Annotator "NA RC"]
[PlyCount "177"]
[EventDate "2017.??.??"]
[EventType "swiss"]
[EventCountry "ROU"]
[SourceTitle "playchess.com"]
[Source "ChessBase"]
[SourceQuality "1"]
[TimeControl "40/5400+30:1800+30"]

1. c4 {[%emt 0:00:00]} e5 {[%emt 0:00:16]} 2. g3 {[%emt 0:00:01]} g6 {[%emt 0:00:47]} 3. Bg2 {[%emt 0:00:10]} Bg7 {[%emt 0:04:41]} 4. Nc3 {[%emt 0:00:06]} Nc6 {[%emt 0:01:38]} 5. d3 {[%emt 0:00:09]} b6 {[%emt 0:00:27]} 6. e3 {[%emt 0:00:34]} Bb7 {[%emt 0:00:13]} 7. Nge2 {[%emt 0:00:07]} Nge7 {[%emt 0:03:52]} 8. O-O {[%emt 0:00:12]} O-O {[%emt 0:00:42]} 9. Rb1 {[%emt 0:00:07]} d6 {[%emt 0:13:59]} 10. b4 {[%emt 0:00:23]} Rb8 {[%emt 0:02:38]} 11. a4 {[%emt 0:02:12]} Qd7 {[%emt 0:00:57]} 12. Ba3 {[%emt 0:02:15]} Rfe8 {[%emt 0:06:13]} 13. Qc2 {[%emt 0:05:39]} Nd8 {[%emt 0:01:59]} 14. e4 {[%emt 0:01:58]} Ne6 {[%emt 0:00:52]} 15. b5 {[%emt 0:13:51]} f5 {[%emt 0:04:09]} 16. Nd5 {[%emt 0:08:40]} Rf8 $11 {[%emt 0:30:28]} 17. Rfd1 {[%emt 0:08:45]} Bc8 {[%emt 0:05:51]} 18. Bc1 {[%emt 0:02:51]} Nc5 {[%emt 0:03:31]} 19. Bg5 {[%emt 0:02:01]} Nxd5 {[%emt 0:00:51]} 20. cxd5 {[%emt 0:00:13]} f4 {[%emt 0:02:19]} 21. gxf4 {[%emt 0:01:39]} h6 {[%emt 0:01:46]} 22. Bh4 {[%emt 0:00:42]} Qg4 {[%emt 0:03:10]} 23. Bg3 {[%emt 0:00:17]} exf4 {[%emt 0:00:35]} 24. f3 {[%emt 0:01:03]} Qg5 {[%emt 0:00:58]} 25. h4 {[%emt 0:02:03]} Qd8 {[%emt 0:04:12]} 26. Bf2 {[%emt 0:06:37]} g5 {[%emt 0:03:08]} 27. Bd4 {[%emt 0:05:38]} g4 {[%emt 0:02:30]} 28. Bxg7 {[%emt 0:00:52]} Kxg7 {[%emt 0:00:06]} 29. Qc3+ {[%emt 0:00:25]} Kh7 {[%emt 0:00:11]} 30. Qe1 {[%emt 0:01:33]} g3 {[%emt 0:01:05]} 31. Kf1 {[%emt 0:01:30]} Qxh4 {[%emt 0:00:22]} 32. Ng1 {[%emt 0:00:10]} Rg8 {[%emt 0:00:33]} 33. d4 {[%emt 0:00:30]} Nb7 {[%emt 0:00:52]} 34. Rbc1 {[%emt 0:00:11]} Rg7 {[%emt 0:00:14]} 35. e5 {[%emt 0:00:55]} Bf5 {[%emt 0:00:00]} 36. e6 {[%emt 0:00:00]} Re8 {[%emt 0:00:07]} 37. Qd2 {[%emt 0:01:36]} Na5 {[%emt 0:00:35]} 38. Rc3 {[%emt 0:00:42]} h5 {[%emt 0:01:13]} 39. Rdc1 {[%emt 0:01:22]} Ree7 {[%emt 0:00:15]} 40. Rd3 {[%emt 0:00:00]} Qg5 {[%emt 0:00:33]} 41. Rdc3 {[%emt 0:09:00]} h4 {[%emt 0:00:14]} 42. Nh3 {[%emt 0:00:38]} Bxh3 {[%emt 0:12:41]} 43. Bxh3 {[%emt 0:00:12]} Kg8 {[%emt 0:00:25]} 44. R1c2 {[%emt 0:00:58]} Kh7 {[%emt 0:03:28]} 45. Qd3+ {[%emt 0:00:26]} Kh6 {[%emt 0:00:33]} 46. Qe4 {[%emt 0:01:03]} Rg6 {[%emt 0:01:56]} 47. Kg2 {[%emt 0:00:22]} Rgg7 {[%emt 0:00:17]} 48. Rc1 {[%emt 0:00:56]} Nb7 {[%emt 0:01:50]} 49. Rh1 {[%emt 0:00:47]} Rg6 {[%emt 0:00:55]} 50. Bg4 {[%emt 0:01:45]} Rg8 {[%emt 0:02:38]} 51. Rcc1 {[%emt 0:00:38]} Kg7 {[%emt 0:01:49]} 52. Rh3 {[%emt 0:00:53]} Na5 {[%emt 0:00:38]} 53. Rch1 {[%emt 0:01:16]} Rh8 {[%emt 0:00:29]} 54. Qf5 {[%emt 0:00:50]} Qxf5 {[%emt 0:00:37]} 55. Bxf5 {[%emt 0:00:05]} Kf6 {[%emt 0:01:55]} 56. Be4 {[%emt 0:00:53]} Kg5 {[%emt 0:00:10]} 57. Rc1 {[%emt 0:01:17]} Nb3 {[%emt 0:01:15]} 58. Rd1 {[%emt 0:00:07]} Ra8 {[%emt 0:00:47]} 59. Bc2 {[%emt 0:01:01]} Na5 {[%emt 0:00:18]} 60. Bd3 {[%emt 0:01:26]} Rh8 {[%emt 0:00:32]} 61. Rb1 {[%emt 0:00:33]} Rh5 {[%emt 0:00:52]} 62. Rb4 {[%emt 0:00:25]} Re8 {[%emt 0:00:33]} 63. Bb1 {[%emt 0:04:01]} Kf6 {[%emt 0:00:44]} 64. Ba2 {[%emt 0:00:07]} Ke7 {[%emt 0:00:44]} 65. Rb2 {[%emt 0:00:06]} Ra8 {[%emt 0:01:33]} 66. Rc2 {[%emt 0:00:19]} Kd8 {[%emt 0:00:17]} 67. Rc1 {[%emt 0:00:39]} a6 {[%emt 0:01:27]} 68. bxa6 {[%emt 0:00:10]} Rxa6 {[%emt 0:00:07]} 69. Rch1 {[%emt 0:00:17]} c5 {[%emt 0:01:15]} 70. Rxh4 {[%emt 0:01:07]} Rxh4 {[%emt 0:03:11]} 71. Rxh4 {[%emt 0:00:07]} c4 {[%emt 0:00:10]} 72. Bb1 {[%emt 0:01:05]} Nb3 {[%emt 0:00:21]} 73. Rh8+ {[%emt 0:01:14]} Ke7 {[%emt 0:00:18]} 74. Rh7+ {[%emt 0:00:19]} Kf6 {[%emt 0:00:17]} 75. Rf7+ {[%emt 0:01:15]} Kg5 {[%emt 0:01:27]} 76. e7 {[%emt 0:00:13]} Ra8 {[%emt 0:01:00]} 77. Rf8 {[%emt 0:00:04]} Re8 {[%emt 0:00:11]} 78. Rxe8 {[%emt 0:00:28]} Kf6 {[%emt 0:00:06]} 79. Rb8 {[%emt 0:00:41]} Kxe7 {[%emt 0:00:05]} 80. Rxb6 {[%emt 0:00:04]} Nd2 {[%emt 0:00:06]} 81. Bc2 {[%emt 0:00:13]} Kd7 {[%emt 0:00:15]} 82. Rb4 {[%emt 0:00:25]} c3 {[%emt 0:00:32]} 83. a5 {[%emt 0:00:06]} Nc4 {[%emt 0:00:27]} 84. Rxc4 {[%emt 0:00:05]} Ke7 {[%emt 0:00:05]} 85. a6 {[%emt 0:00:05]} Kf7 {[%emt 0:00:17]} 86. a7 {[%emt 0:00:04]} Kf6 {[%emt 0:00:17]} 87. a8=Q {[%emt 0:00:12]} Ke7 {[%emt 0:00:07]} 88. Rc7+ {[%emt 0:00:13]} Kf6 {[%emt 0:00:05]} 89. Qd8# {[%emt 0:00:17]} 1-0

[Event "EYCC 2017"]
[Site "Mamaia"]
[Date "2017.09.14"]
[Round "9"]
[White "Goraj, Barbara"]
[Black "Wikar, Martyna"]
[Result "1/2-1/2"]
[ECO "B92"]
[WhiteElo "1711"]
[BlackElo "1943"]
[Annotator "NA RC"]
[PlyCount "63"]
[EventDate "2017.??.??"]
[EventType "swiss"]
[EventCountry "ROU"]
[SourceTitle "playchess.com"]
[Source "ChessBase"]
[SourceQuality "1"]
[TimeControl "40/5400+30:1800+30"]

1. e4 {[%emt 0:00:00]} c5 {[%emt 0:00:09]} 2. Nf3 {[%emt 0:00:00]} d6 {[%emt 0:00:10]} 3. d4 {[%emt 0:00:09]} cxd4 {[%emt 0:00:06]} 4. Nxd4 {[%emt 0:00:11]} Nf6 {[%emt 0:00:19]} 5. Nc3 {[%emt 0:00:47]} a6 {[%emt 0:00:11]} 6. Be2 {[%emt 0:02:34]} e5 {[%emt 0:02:42]} 7. Nb3 {[%emt 0:00:52]} Be7 {[%emt 0:02:07]} 8. Bg5 {[%emt 0:02:06]} Be6 {[%emt 0:01:36]} 9. Bxf6 {[%emt 0:01:45]} Bxf6 {[%emt 0:01:37]} 10. Qd3 {[%emt 0:01:46]} Nc6 {[%emt 0:04:12]} 11. O-O-O {[%emt 0:02:06]} Bxb3 {[%emt 0:03:07]} 12. axb3 {[%emt 0:04:59]} Bg5+ {[%emt 0:02:12]} 13. Kb1 {[%emt 0:01:20]} Nd4 {[%emt 0:01:22]} 14. Bg4 {[%emt 0:05:44]} O-O {[%emt 0:06:16]} 15. Nd5 {[%emt 0:03:40]} a5 {[%emt 0:04:59]} 16. Ka2 {[%emt 0:07:44]} Ra6 {[%emt 0:07:19]} 17. h4 $14 {[%emt 0:16:50]} Bh6 {[%emt 0:09:12]} 18. c3 {[%emt 0:12:19]} Ne6 {[%emt 0:02:13]} 19. Qh3 {[%emt 0:00:53]} Qd7 {[%emt 0:17:12]} 20. Bf5 {[%emt 0:11:41]} a4 {[%emt 0:11:58]} 21. b4 {[%emt 0:06:15]} Kh8 {[%emt 0:01:54]} 22. Qd3 {[%emt 0:08:45]} Qd8 {[%emt 0:06:29]} 23. Qb5 {[%emt 0:02:36]} Qc8 {[%emt 0:04:45]} 24. f3 {[%emt 0:00:49]} g6 {[%emt 0:01:36]} 25. Bxe6 {[%emt 0:01:24]} fxe6 {[%emt 0:00:44]} 26. Nb6 {[%emt 0:00:38]} Qc7 {[%emt 0:00:52]} 27. Nc4 {[%emt 0:01:54]} Rc8 {[%emt 0:00:56]} 28. Na3 {[%emt 0:01:50]} Qf7 {[%emt 0:02:38]} 29. Nc4 {[%emt 0:01:50]} Qc7 {[%emt 0:00:58]} 30. Na3 {[%emt 0:00:12]} Qf7 {[%emt 0:00:16]} 31. Nc4 {[%emt 0:00:11]} Qc7 {[%emt 0:02:09]} 32. Na3 {[%emt 0:01:19]} 1/2-1/2

[Event "EYCC 2017"]
[Site "Mamaia"]
[Date "2017.09.14"]
[Round "9"]
[White "Royal, Shreyas"]
[Black "Camlar, Arda"]
[Result "1-0"]
[ECO "E04"]
[WhiteElo "1700"]
[BlackElo "1361"]
[Annotator "NA RC"]
[PlyCount "65"]
[EventDate "2017.??.??"]
[EventType "swiss"]
[EventCountry "ROU"]
[SourceTitle "playchess.com"]
[Source "ChessBase"]
[SourceQuality "1"]
[TimeControl "40/5400+30:1800+30"]

1. d4 d5 2. Nf3 Nf6 3. c4 e6 4. g3 dxc4 5. Bg2 a6 6. O-O Nc6 7. e3 Bd7 8. Nbd2 b5 9. Ne5 Nd5 10. Nxd7 Qxd7 11. a4 Qc8 12. e4 Nde7 13. d5 Ne5 14. dxe6 fxe6 15. Qh5+ N7g6 16. f4 Nd3 17. f5 Bc5+ 18. Kh1 Nf2+ 19. Rxf2 Bxf2 20. fxg6 h6 21. e5 O-O 22. Ne4 Rf5 23. Qh3 Qe8 24. axb5 Rd8 25. Bf4 Qxb5 26. Nxf2 Qxb2 27. Rf1 c3 28. Be4 Rff8 29. Qxe6+ Kh8 30. Qh3 Kg8 31. Bd5+ Kh8 32. Bxh6 Rxf2 33. Be3# 1-0

[Event "EYCC 2017"]
[Site "Mamaia"]
[Date "2017.09.14"]
[Round "9"]
[White "Tsotsonava, Elene"]
[Black "Dubovyk, Anastasiia"]
[Result "0-1"]
[ECO "B27"]
[WhiteElo "1644"]
[BlackElo "1785"]
[Annotator "NA RC"]
[PlyCount "116"]
[EventDate "2017.??.??"]
[EventType "swiss"]
[EventCountry "ROU"]
[SourceTitle "playchess.com"]
[Source "ChessBase"]
[SourceQuality "1"]
[TimeControl "40/5400+30:1800+30"]

1. e4 {[%emt 0:00:00]} c5 {[%emt 0:00:06]} 2. Nf3 {[%emt 0:00:00]} g6 {[%emt 0:00:06]} 3. d4 {[%emt 0:00:52]} cxd4 {[%emt 0:00:10]} 4. Nxd4 {[%emt 0:00:22]} Bg7 {[%emt 0:00:11]} 5. Ne2 {[%emt 0:01:10]} Nc6 {[%emt 0:00:32]} 6. Nbc3 {[%emt 0:00:47]} Nf6 {[%emt 0:00:18]} 7. g3 {[%emt 0:00:10]} d6 {[%emt 0:00:10]} 8. Bg2 {[%emt 0:00:09]} O-O {[%emt 0:00:12]} 9. O-O {[%emt 0:00:07]} Bd7 {[%emt 0:00:32]} 10. h3 {[%emt 0:04:35]} Re8 {[%emt 0:00:14]} 11. Nd5 {[%emt 0:03:47]} Rc8 {[%emt 0:14:14]} 12. Nec3 {[%emt 0:03:21]} Nxd5 {[%emt 0:11:29]} 13. exd5 {[%emt 0:03:00]} Ne5 {[%emt 0:05:47]} 14. Ne2 {[%emt 0:02:51]} Bb5 {[%emt 0:13:48]} 15. Re1 {[%emt 0:02:13]} Bxe2 {[%emt 0:04:51]} 16. Qxe2 {[%emt 0:00:32]} a6 {[%emt 0:05:47]} 17. a4 {[%emt 0:03:57]} Qc7 {[%emt 0:06:33]} 18. c3 {[%emt 0:00:44]} h6 {[%emt 0:06:25]} 19. h4 {[%emt 0:17:51]} e6 {[%emt 0:11:38]} 20. dxe6 {[%emt 0:02:00]} Rxe6 {[%emt 0:01:01]} 21. Qd1 {[%emt 0:10:36]} Rce8 {[%emt 0:05:10]} 22. Bd2 {[%emt 0:04:01]} Nc4 {[%emt 0:07:43]} 23. Rxe6 {[%emt 0:02:38]} Rxe6 {[%emt 0:00:33]} 24. Bd5 {[%emt 0:00:37]} Re7 {[%emt 0:02:16]} 25. Bxc4 {[%emt 0:04:01]} Qxc4 {[%emt 0:00:06]} 26. Be3 {[%emt 0:00:11]} d5 {[%emt 0:00:53]} 27. Qd2 {[%emt 0:00:54]} Kh7 {[%emt 0:00:26]} 28. Rd1 {[%emt 0:02:40]} Qxa4 {[%emt 0:00:25]} 29. Qxd5 {[%emt 0:00:11]} Re6 {[%emt 0:01:41]} 30. b3 {[%emt 0:02:05]} Qg4 {[%emt 0:00:47]} 31. c4 {[%emt 0:02:28]} Re5 {[%emt 0:00:59]} 32. Qd7 {[%emt 0:11:48]} Qf3 {[%emt 0:00:26]} 33. Qd3 {[%emt 0:02:35]} Re6 {[%emt 0:00:38]} 34. Qd5 {[%emt 0:02:39]} Qg4 {[%emt 0:00:33]} 35. Kg2 {[%emt 0:00:55]} Re5 {[%emt 0:00:22]} 36. Qd7 {[%emt 0:02:18]} Rf5 {[%emt 0:00:39]} 37. Rd5 {[%emt 0:04:27]} Qe4+ {[%emt 0:00:27]} 38. Kh2 {[%emt 0:00:42]} Rf3 {[%emt 0:00:33]} 39. Qxb7 {[%emt 0:01:08]} Rf5 {[%emt 0:00:42]} 40. Rd7 {[%emt 0:00:00]} Qe6 {[%emt 0:00:24]} 41. Rd5 {[%emt 0:03:07]} Qe4 {[%emt 0:08:03]} 42. Qxa6 {[%emt 0:00:55]} Be5 {[%emt 0:10:08]} 43. Rxe5 {[%emt 0:09:05]} Rxe5 {[%emt 0:06:47]} 44. b4 {[%emt 0:00:53]} g5 {[%emt 0:03:31]} 45. Qf6 {[%emt 0:03:25]} Rf5 {[%emt 0:00:40]} 46. Qd4 {[%emt 0:00:26]} Qe6 {[%emt 0:02:23]} 47. b5 {[%emt 0:02:05]} gxh4 {[%emt 0:01:31]} 48. Qxh4 {[%emt 0:11:24]} Re5 {[%emt 0:00:29]} 49. Bd4 {[%emt 0:05:17]} Rf5 {[%emt 0:01:02]} 50. c5 {[%emt 0:00:53]} Qe2 {[%emt 0:00:29]} 51. g4 {[%emt 0:01:40]} Rg5 {[%emt 0:00:34]} 52. b6 {[%emt 0:00:48]} Rxg4 {[%emt 0:00:26]} 53. Qf6 {[%emt 0:00:06]} Qc4 {[%emt 0:00:35]} 54. Qf5+ {[%emt 0:00:58]} Rg6 {[%emt 0:00:10]} 55. b7 {[%emt 0:00:02]} Qxd4 {[%emt 0:00:35]} 56. b8=Q {[%emt 0:00:08]} Qh4+ {[%emt 0:00:16]} 57. Qh3 {[%emt 0:00:16]} Qxf2+ {[%emt 0:00:10]} 58. Kh1 {[%emt 0:00:01]} Qg1# {[%emt 0:00:18] Qa8} 0-1

[Event "EYCC 2017"]
[Site "Mamaia"]
[Date "2017.09.14"]
[Round "9"]
[White "Ljepic, Andrej"]
[Black "Giang, Tran Nam"]
[Result "0-1"]
[ECO "B23"]
[WhiteElo "1616"]
[BlackElo "1561"]
[Annotator "NA RC"]
[PlyCount "46"]
[EventDate "2017.??.??"]
[EventType "swiss"]
[EventCountry "ROU"]
[SourceTitle "playchess.com"]
[Source "ChessBase"]
[SourceQuality "1"]
[TimeControl "40/5400+30:1800+30"]

1. e4 {[%emt 0:00:00]} c5 {[%emt 0:00:03]} 2. Nc3 {[%emt 0:00:00]} e6 {[%emt 0:00:05]} 3. f4 {[%emt 0:00:00]} d5 {[%emt 0:00:33]} 4. Nf3 {[%emt 0:01:05]} dxe4 {[%emt 0:00:26]} 5. Nxe4 {[%emt 0:00:12]} Nc6 {[%emt 0:00:18]} 6. Bc4 {[%emt 0:02:25]} Nh6 {[%emt 0:04:00]} 7. O-O {[%emt 0:01:05]} Be7 {[%emt 0:02:07]} 8. d3 {[%emt 0:01:23]} O-O {[%emt 0:03:20]} 9. Kh1 {[%emt 0:05:42]} Nf5 {[%emt 0:06:43]} 10. c3 {[%emt 0:02:31]} b6 {[%emt 0:03:44]} 11. g4 {[%emt 0:08:56]} Nd6 {[%emt 0:03:18]} 12. Nxd6 {[%emt 0:13:12]} Qxd6 {[%emt 0:04:05]} 13. Be3 {[%emt 0:19:50]} Bb7 {[%emt 0:03:17]} 14. Kg1 {[%emt 0:00:31]} Rac8 {[%emt 0:10:44]} 15. Qe2 {[%emt 0:05:42]} Na5 {[%emt 0:10:53]} 16. Rad1 {[%emt 0:04:43]} Qc7 {[%emt 0:11:43]} 17. Nd2 {[%emt 0:07:36]} Rfd8 {[%emt 0:05:20]} 18. Qf2 {[%emt 0:03:55]} Qc6 {[%emt 0:02:02]} 19. Qg3 {[%emt 0:02:35]} Bh4 {[%emt 0:02:10]} 20. Qf3 {[%emt 0:00:53]} Qxf3 {[%emt 0:00:26]} 21. Nxf3 {[%emt 0:00:53]} Bxf3 {[%emt 0:00:21]} 22. Rxf3 {[%emt 0:00:25]} Nxc4 {[%emt 0:00:10]} 23. g5 {[%emt 0:01:22]} f6 0-1